Cogmind - Beta 16.1 @@@ ROGUE MODE // 2026.04.20 @ 09:38:47 Player: ae Result: Escaped! Performance ------------- Evolutions (9) 4500 Regions Visited (12) 2400 Robots Destroyed (59) 295 Value Destroyed (971) 971 Prototype IDs (33) 660 Alien Tech Used (0) 0 Bonus (6186) 6186 TOTAL SCORE: 15012 Bonus ------- Follower Combat Kills 149 Aligned with FarCom 300 Win 3000 Win Speed 2737 Cogmind --------- Core Integrity 1529/1600 Matter 221/300 Energy 130/150 System Corruption 1% Temperature Cool (59) Movement Flying (13) Location To Epsilon Eridani Parts ------- > --- POWER (2) -------- Backup Power VII Micro Antimatter Reactor > --- PROPULSION (8) --- Cooled Cesium-ion Thruster Cooled Nuclear Pulse Thruster Field Propulsion Array Q-thruster Improved Q-thruster Improved Q-thruster Improved Q-thruster > --- UTILITY (13) ----- Advanced Power Amplifier Small Storage Unit Structural Scanner Enhanced Optical Array Advanced Transmission Jammer Advanced Reaction Control System Centrium Light Armor Plating Hacking Suite Hacking Suite Improved Hacking Suite Improved Hacking Suite Advanced Hacking Suite System Shield > --- WEAPON (2) ------- Centrium Greatsword > --- INVENTORY (8) ---- Cooled Cesium-ion Thruster Cooled Cesium-ion Thruster Q-thruster Centrium Light Armor Plating Enhanced Hardcell Cannon Long-range Missile Launcher Centrium Greatsword Peak State ------------ > --- POWER ------------ Backup Power VII Micro Antimatter Reactor > --- PROPULSION ------- Cooled Cesium-ion Thruster Cooled Nuclear Pulse Thruster Field Propulsion Array Q-thruster Improved Q-thruster Improved Q-thruster Improved Q-thruster > --- UTILITY ---------- Advanced Power Amplifier Small Storage Unit Structural Scanner Enhanced Optical Array Advanced Transmission Jammer Advanced Reaction Control System Centrium Light Armor Plating Hacking Suite Hacking Suite Improved Hacking Suite Improved Hacking Suite Advanced Hacking Suite System Shield > --- WEAPON ----------- Centrium Greatsword > --- INVENTORY -------- Cooled Cesium-ion Thruster Cooled Cesium-ion Thruster Q-thruster Centrium Light Armor Plating Enhanced Hardcell Cannon Long-range Missile Launcher Centrium Greatsword [Rating: 163] Favorites ----------- Power Micro Nuclear Core Engine Light Deuterium Engine Power Core Micro Nuclear Core Reactor Micro Antimatter Reactor Propulsion Flight Unit Treads Light Treads Flight Unit Flight Unit Utility Hacking Suite Device Structural Scanner Storage Small Storage Unit Processor Enhanced Optical Array Hackware Hacking Suite Protection Improved Medium Armor Plating Weapon Centrium Greatsword Ballistic Gun Assault Rifle Ballistic Cannon Enhanced Hardcell Cannon Launcher Grenade Launcher Impact Weapon Impact Mace Slashing Weapon Centrium Greatsword Build | -11 -10 -10 -10 -9 -8 -7 -6 -5 -4 -3 -2 -1 ------- Run | Yrd Mat Min Exi Min Mat Fac Fac Fac Fac Res Res Acc Slots Evolved 18 | . . . . . 4 2 2 2 2 2 2 2 Power 1 | . . . . . . 1 . . . . . . Propulsion 6 | . . . . . 2 1 . 1 1 1 . . Utility 11 | . . . . . 2 . 2 1 1 1 2 2 Weapon . | . . . . . . . . . . . . . Parts Attached 65 | 3 1 3 . . 9 7 11 7 4 6 8 6 Power 5 | . . . . . 1 1 1 . . 1 1 . Engine 1 | . . . . . 1 . . . . . . . Core 2 | . . . . . . 1 1 . . . . . Reactor 2 | . . . . . . . . . . 1 1 . Propulsion 29 | 2 . 2 . . 4 2 6 5 1 1 4 2 Treads 2 | 2 . . . . . . . . . . . . Leg . | . . . . . . . . . . . . . Wheel . | . . . . . . . . . . . . . Hover . | . . . . . . . . . . . . . Flight 27 | . . 2 . . 4 2 6 5 1 1 4 2 Utility 21 | . 1 1 . . 1 3 2 2 2 3 3 3 Device 6 | . 1 . . . 1 . . . 1 1 1 1 Storage 1 | . . 1 . . . . . . . . . . Processor 4 | . . . . . . 1 . 1 . . 1 1 Hackware 8 | . . . . . . 2 2 . 1 2 . 1 Protection 2 | . . . . . . . . 1 . . 1 . Artifact . | . . . . . . . . . . . . . Weapon 10 | 1 . . . . 3 1 2 . 1 1 . 1 Energy Gun . | . . . . . . . . . . . . . Energy Cannon . | . . . . . . . . . . . . . Ballistic Gun 1 | 1 . . . . . . . . . . . . Ballistic Cannon 1 | . . . . . . . . . . . . 1 Launcher 2 | . . . . . 1 . . . . 1 . . Special Weapon . | . . . . . . . . . . . . . Impact Weapon 2 | . . . . . 1 1 . . . . . . Slashing Weapon 4 | . . . . . 1 . 2 . 1 . . . Piercing Weapon . | . . . . . . . . . . . . . Special Melee Weapon . | . . . . . . . . . . . . . Unidentified Prototypes 9 | . . . . . 1 . 2 1 1 . 3 1 Parts Lost 4 | . . . . . 1 1 1 . . . . 1 Power . | . . . . . . . . . . . . . Propulsion 3 | . . . . . 1 1 1 . . . . . Utility 1 | . . . . . . . . . . . . 1 Weapon . | . . . . . . . . . . . . . Highest Loss Streak 1 | . . . . . 1 1 1 . . . . 1 To Critical Strikes . | . . . . . . . . . . . . . Average Backups 6 | 1 4 7 8 8 7 7 6 6 7 6 7 6 Power . | . 1 . . . . . . . . . . . Propulsion 1 | . . 2 4 4 2 . . 2 2 2 2 2 Utility 2 | . 1 1 1 1 1 3 3 1 2 2 2 1 Weapon 2 | . 1 2 3 3 3 3 2 2 2 1 2 2 Tool/Special . | . . . . . . . . . . . . . Unused Backups 22 | . . 1 1 . 5 3 3 3 . 1 2 3 Power 1 | . . 1 . . . . . . . . . . Propulsion 5 | . . . . . 1 . . 1 . 1 1 1 Utility 9 | . . . . . 2 1 2 2 . . 1 1 Weapon 7 | . . . 1 . 2 2 1 . . . . 1 Tool/Special . | . . . . . . . . . . . . . Average Slot Usage (%) 85 | . 57 68 71 71 75 89 87 92 93 88 86 89 Engine 2 | . . . . . 5 7 3 . . . . . Core 4 | . . . . . . 5 6 11 10 8 2 2 Reactor 1 | . . . . . . . . . . . 5 5 Flight 30 | . . 25 28 28 34 37 30 35 35 33 30 28 Device 11 | . 14 14 14 14 17 9 6 4 9 9 13 17 Storage 6 | . . 11 14 14 9 7 6 5 5 4 4 4 Hackware 16 | . . . . . . 12 25 23 21 21 21 21 Protection 1 | . . . . . . . . 4 5 4 4 4 Ballistic Gun 2 | . 14 14 14 14 4 . . . . . . . Impact Weapon 1 | . . . . . . 6 . . . . . . Slashing Weapon 3 | . . . . . 3 . 5 5 5 4 4 3 Peak Build Rating 163 | 3 4 5 6 6 20 30 68 80 93 113 147 163 Average Rating 70 | 2 4 4 5 6 14 26 44 76 91 105 134 157 On Entrance 43 | . 3 4 5 6 6 17 28 67 78 93 113 147 Avg Prop Armor Cover (%) 25 | 30 29 29 . . . . . . . . . 7 Naked Turns . | . . . . . . . . . . . . . Heaviest Build 39 | 2 3 8 8 8 15 21 22 29 32 35 39 38 Greatest Support 71 | 40 3 8 8 8 16 25 29 48 38 50 62 71 Greatest Overweight (x) 1 | . . . . . . . . . . . . 1 Average Overweight (x) . | . . . . . . . . . . . . . Largest Inventory Capacity 8 | 5 5 8 8 8 8 8 8 8 8 8 8 8 Average Capacity 7 | 5 5 7 8 8 8 8 8 8 8 8 8 8 Most Carried 8 | 4 5 8 8 8 8 8 8 8 8 8 8 8 Average Carried 7 | 2 4 7 8 8 7 7 7 7 7 7 7 7 Final Capacity 8 | 5 5 8 8 8 8 8 8 8 8 8 8 8 Final Carried 8 | 4 5 8 8 8 8 8 8 8 8 8 8 8 Class Distribution -------------------- 56% | Hacker-Sprinter 19% | Scavenger-Sprinter 14% | Mutant 4% | Wizard-Ninja Dominant Class ---------------- Mutant | -10/Materials Mutant | -10/Mines Mutant | -10/Exiles Mutant | -9/Mines Scavenger-Sprinter | -8/Materials Scavenger-Sprinter | -7/Factory Hacker-Sprinter | -6/Factory Hacker-Sprinter | -5/Factory Hacker-Sprinter | -4/Factory Hacker-Sprinter | -3/Research Hacker-Sprinter | -2/Research Wizard-Ninja | -1/Access Resources | -11 -10 -10 -10 -9 -8 -7 -6 -5 -4 -3 -2 -1 ----------- Run | Yrd Mat Min Exi Min Mat Fac Fac Fac Fac Res Res Acc Matter Collected 1160 | 257 16 33 . . 128 115 50 153 70 105 63 170 Remotely . | . . . . . . . . . . . . . Salvage Created 2690 | 56 . . . . 208 559 631 525 207 251 84 169 Parts 115 | 3 . . . . 15 10 28 26 4 5 8 16 Haulers Intercepted 13 | . . . . . 2 3 3 1 2 2 . . Recyclers Shooed 4 | . . . . . . . . 1 . 1 . 2 Parts Field Recycled . | . . . . . . . . . . . . . Retrieved Matter . | . . . . . . . . . . . . . Parts Self-Destructed . | . . . . . . . . . . . . . Prevented . | . . . . . . . . . . . . . Parts Restored . | . . . . . . . . . . . . . Kills | -11 -10 -10 -10 -9 -8 -7 -6 -5 -4 -3 -2 -1 ------- Run | Yrd Mat Min Exi Min Mat Fac Fac Fac Fac Res Res Acc Combat Hostiles Destroyed 14 | . . . . . 6 . . . . 4 . 4 Melee 2 | . . . . . 1 . . . . 1 . . AOE 12 | . . . . . 5 . . . . 3 . 4 Classes Destroyed 9 | 1 . . . . 5 2 1 . . . . . Worker 7 | . . . . . 1 . . 6 . . . . Builder 2 | . . . . . . 1 . . . . 1 . Tunneler 4 | 2 . . . . . 1 . . . . . 1 Hauler 13 | . . . . . 2 3 3 1 2 2 . . Recycler 9 | . . . . . . 4 2 2 . . . 1 Operator 8 | . . . . . 1 3 2 1 . . 1 . Watcher 2 | . . . . . . . 1 . . . 1 . Swarmer 13 | . . . . . 5 . . . . 4 . 4 Hunter 1 | . . . . . 1 . . . . . . . Best Kill Streak 5 | 2 . . . . 3 2 2 4 1 4 2 5 Combat Bots Only 4 | . . . . . 3 . . . . 4 . 4 Max Kills in Single Turn 3 | 1 . . . . 3 1 1 1 1 3 1 3 Gunslinging . | . . . . . . . . . . . . . Exploded 3 | . . . . . 3 . . . . 3 . 3 Melee 1 | . . . . . 1 . . . . 1 . . Uniques/NPCs Destroyed . | . . . . . . . . . . . . . Combat | -11 -10 -10 -10 -9 -8 -7 -6 -5 -4 -3 -2 -1 -------- Run | Yrd Mat Min Exi Min Mat Fac Fac Fac Fac Res Res Acc Hostile Shots Fired 46 | . . 4 . . 11 2 6 . . 6 . 17 Missed 23 | . . 2 . . 5 . 3 . . 2 . 11 Hits 23 | . . 2 . . 6 2 3 . . 4 . 6 Projectile 23 | . . 2 . . 6 2 3 . . 4 . 6 Damage Taken 571 | . . 20 . . 48 36 93 . . 89 . 285 Core 123 | . . 20 . . . . 12 . . 20 . 71 Absorbed by Shields . | . . . . . . . . . . . . . Regen/Repaired (Parts) 46 | . . . . . . . . . . . . 46 Core Remaining (%) 98 | 100 . . . 92 100 100 98 100 100 98 100 95 Volleys Fired 26 | 9 3 . . . 4 . . . . 3 . 7 Largest 2 | 1 1 . . . 2 . . . . 1 . 1 Hottest 58 | 20 20 . . . 50 . . . . 43 . 58 Shots Fired 27 | 9 3 . . . 5 . . . . 3 . 7 Gun 13 | 9 3 . . . 1 . . . . . . . Cannon 4 | . . . . . . . . . . . . 4 Launcher 10 | . . . . . 4 . . . . 3 . 3 Special . | . . . . . . . . . . . . . Kinetic 17 | 9 3 . . . 1 . . . . . . 4 Thermal . | . . . . . . . . . . . . . Explosive 10 | . . . . . 4 . . . . 3 . 3 Electromagnetic . | . . . . . . . . . . . . . Robot Hit Streak 4 | 4 . . . . 1 . . . . 2 . . Robot Miss Streak 4 | 2 3 . . . 4 . . . . . . 3 Penetration Max . | . . . . . . . . . . . . . Secondary Targets . | . . . . . . . . . . . . . Shots Hit Robots 86 | 6 . . . . 13 21 15 14 2 10 4 1 Core Hits 53 | 2 . . . . 9 2 7 7 2 10 2 12 Critical Kills . | . . . . . . . . . . . . . Critical Parts Destroyed 4 | 1 . . . . . 3 . . . . . . Critical Strikes 13 | 1 . . . . 1 3 3 2 . 3 . . Destroy 1 | 1 . . . . . . . . . . . . Smash 3 | . . . . . . 3 . . . . . . Sever 9 | . . . . . 1 . 3 2 . 3 . . Melee Attacks 248 | . . . . . 12 60 49 30 13 28 30 26 Impact 61 | . . . . . . 55 6 . . . . . Slashing 187 | . . . . . 12 5 43 30 13 28 30 26 Piercing . | . . . . . . . . . . . . . Sneak Attacks 41 | . . . . . 7 11 5 11 2 3 1 1 Combat Hostiles . | . . . . . . . . . . . . . Follow-up Attacks . | . . . . . . . . . . . . . Damage Inflicted 9695 | 81 . . . . 1268 1665 1672 2026 320 1381 472 810 Guns 81 | 81 . . . . . . . . . . . . Cannons . | . . . . . . . . . . . . . Explosions 1420 | . . . . . 308 . . . . 457 . 655 Melee 8194 | . . . . . 960 1665 1672 2026 320 924 472 155 Ramming . | . . . . . . . . . . . . . Kinetic 81 | 81 . . . . . . . . . . . . Thermal . | . . . . . . . . . . . . . Explosive 1420 | . . . . . 308 . . . . 457 . 655 Electromagnetic . | . . . . . . . . . . . . . Impact 1438 | . . . . . . 1438 . . . . . . Slashing 6756 | . . . . . 960 227 1672 2026 320 924 472 155 Piercing . | . . . . . . . . . . . . . Highest Corruption 5 | . . . . . . . 5 3 . . . 1 Average Corruption 1 | . . . . . . . 5 3 . . . 1 Corruption Purged . | . . . . . . . . . . . . . Corruption Blocked . | . . . . . . . . . . . . . Effects 7 | . . . . . . . 3 . . . . 4 Matter Fused 4 | . . . . . . . 2 . . . . 2 Energy Discharges 1 | . . . . . . . 1 . . . . . Data Loss (major) 2 | . . . . . . . . . . . . 2 Overload Shots . | . . . . . . . . . . . . . Overflow Damage 1710 | . . . . . 212 663 92 455 . 89 158 41 Projectiles . | . . . . . . . . . . . . . Explosions 67 | . . . . . . . . . . 26 . 41 Melee 1643 | . . . . . 212 663 92 455 . 63 158 . Knockbacks 5 | . . . . . . 5 . . . . . . Impact 5 | . . . . . . 5 . . . . . . Kinetic . | . . . . . . . . . . . . . Secondary . | . . . . . . . . . . . . . Self-Inflicted Damage 47 | . . . . . . . . . . . . 47 Shots 1 | . . . . . . . . . . . . 1 Rammed . | . . . . . . . . . . . . . Targets Rammed . | . . . . . . . . . . . . . Kicked . | . . . . . . . . . . . . . Crushed . | . . . . . . . . . . . . . Highest Temperature 505 | . . . . . . 49 2 102 182 233 505 286 Average Temperature 59 | . . . . . . 11 1 38 48 64 83 85 Received Heat Transfer 36 | . . . . . . 18 . . . . . 18 Effects 3 | . . . . . . . . . . . 3 . Shutdowns 1 | . . . . . . . . . . . 1 . Energy Bleed 1 | . . . . . . . . . . . 1 . Damage (minor) 1 | . . . . . . . . . . . 1 . Siege Activations . | . . . . . . . . . . . . . Martial Activations . | . . . . . . . . . . . . . Shielding Activations . | . . . . . . . . . . . . . Robots Disrupted . | . . . . . . . . . . . . . Combat Hostiles . | . . . . . . . . . . . . . Robots Corrupted 4 | . . . . . . 4 . . . . . . Combat Hostiles . | . . . . . . . . . . . . . Parts Fried 13 | . . . . . . 13 . . . . . . Impact Corruptions 17 | . . . . . . 17 . . . . . . Robots Melted . | . . . . . . . . . . . . . Combat Hostiles . | . . . . . . . . . . . . . Parts Melted . | . . . . . . . . . . . . . Heat Transferred . | . . . . . . . . . . . . . Parts Sabotaged . | . . . . . . . . . . . . . Parts Stolen . | . . . . . . . . . . . . . Parts Stripped . | . . . . . . . . . . . . . Power Chain Reactions . | . . . . . . . . . . . . . Alert | -11 -10 -10 -10 -9 -8 -7 -6 -5 -4 -3 -2 -1 ------- Run | Yrd Mat Min Exi Min Mat Fac Fac Fac Fac Res Res Acc Maximum Alert Level 1 | . . . . . 1 . . . . . . 1 Low Security (%) 97 | 100 100 100 . 100 65 100 100 100 100 100 100 96 Level 1 2 | . . . . . 35 . . . . . . 3 Level 2 . | . . . . . . . . . . . . . Level 3 . | . . . . . . . . . . . . . Level 4 . | . . . . . . . . . . . . . Level 5 . | . . . . . . . . . . . . . High Security . | . . . . . . . . . . . . . Max Security . | . . . . . . . . . . . . . Peak Influence 327 | 10 . 15 . . 327 165 88 91 24 153 70 233 Initial 135 | . . . . . . 135 51 25 14 . 64 10 Average 49 | 1 . 2 . . 131 124 21 45 6 77 19 34 Influence Increases 2055 | 10 . 30 . . 407 298 229 196 68 241 152 424 Destroy 0b10 Robot/C 400 | . . . . . 200 . 20 20 . 80 . 80 Destroy 0b10 Robot/NC 220 | 10 . . . . 15 55 40 55 10 10 15 10 Destroy Leader 106 | . . . . . 44 6 16 12 4 12 2 10 Allied During Kill 41 | . . . . . 39 . . 2 . . . . Successful Hack 213 | . . . . . 30 51 16 25 34 9 . 48 Disable Machine 90 | . . . . . 15 15 15 30 . . . 15 Destroy Structure 490 | . . . . . 19 36 32 22 20 70 75 216 Partial Spotted 135 | . . . . . 15 . 15 30 . 15 45 15 Lose Combat Pursuer 360 | . . 30 . . 30 135 75 . . 45 15 30 Influence Decreases 1822 | 10 . 30 . . 110 490 280 219 99 126 249 209 Entered New Map 321 | . . . . . . 162 54 29 17 . 51 8 Time Decay 1292 | 10 . 30 . . 80 278 206 170 58 126 143 191 Lost Part 30 | . . . . . 10 10 . . . . . 10 Lost Ally 100 | . . . . . 20 40 20 20 . . . . Purge Threat 79 | . . . . . . . . . 24 . 55 . Squads Dispatched 30 | . . . . . 2 9 4 4 . 2 2 7 Investigation 8 | . . . . . 1 4 1 . . . 1 1 Extermination 11 | . . . . . . 2 2 2 . 1 1 3 Reinforcement 9 | . . . . . . 2 1 2 . 1 . 3 Assault . | . . . . . . . . . . . . . Garrison 2 | . . . . . 1 1 . . . . . . Intercept . | . . . . . . . . . . . . . Searches Triggered . | . . . . . . . . . . . . . Construction Impeded 1 | . . . . . . . . . . 1 . . Haulers Reinforced 2 | . . . . . . 1 1 . . . . . Active Scanning Responses . | . . . . . . . . . . . . . Cargo Convoy Interrupts . | . . . . . . . . . . . . . Stealth | -11 -10 -10 -10 -9 -8 -7 -6 -5 -4 -3 -2 -1 --------- Run | Yrd Mat Min Exi Min Mat Fac Fac Fac Fac Res Res Acc Distress Signals 6 | . . . . . 1 2 . 1 . 1 . 1 Communications Jammed 3 | . . . . . . . . . . . 1 2 Distress Signals 3 | . . . . . . . . . . . 1 2 Times Spotted 72 | . . 5 . . 8 14 13 5 2 8 7 10 Peak Tracking Total 7 | . 1 3 . . 3 5 4 2 2 4 3 7 Tactical Retreats 14 | . . 2 . . 1 5 2 . . 1 1 2 Traps | -11 -10 -10 -10 -9 -8 -7 -6 -5 -4 -3 -2 -1 ------- Run | Yrd Mat Min Exi Min Mat Fac Fac Fac Fac Res Res Acc Traps Triggered 4 | . . . . . . . 1 2 . . . 1 Indirectly . | . . . . . . . . . . . . . Trap Hack Attempts . | . . . . . . . . . . . . . Triggered . | . . . . . . . . . . . . . Disarmed . | . . . . . . . . . . . . . Reprogrammed . | . . . . . . . . . . . . . Reused . | . . . . . . . . . . . . . Traps Extracted . | . . . . . . . . . . . . . Installed . | . . . . . . . . . . . . . Triggered . | . . . . . . . . . . . . . Machines | -11 -10 -10 -10 -9 -8 -7 -6 -5 -4 -3 -2 -1 ---------- Run | Yrd Mat Min Exi Min Mat Fac Fac Fac Fac Res Res Acc Machines Disabled 6 | . . . . . 1 1 1 2 . . . 1 Max in Single Turn 1 | . . . . . . 1 1 1 . . . 1 Garrison Access 5 | . . . . . . 1 . 1 1 1 1 . Energy Cycler 1 | . . . . . . . . . . . . 1 Machines Repaired . | . . . . . . . . . . . . . Machines Dismantled . | . . . . . . . . . . . . . Machines Sabotaged . | . . . . . . . . . . . . . Overloaded Fab Kills . | . . . . . . . . . . . . . Hacking | -11 -10 -10 -10 -9 -8 -7 -6 -5 -4 -3 -2 -1 --------- Run | Yrd Mat Min Exi Min Mat Fac Fac Fac Fac Res Res Acc Machines Accessed 58 | . . . 2 . 5 13 8 8 5 4 5 8 Terminals 37 | . . . . . 3 8 6 6 4 2 3 5 Fabricators 3 | . . . . . . 1 1 . . . 1 . Repair Stations 2 | . . . . . . . 1 . . . . 1 Recycling Units 3 | . . . . . 2 1 . . . . . . Scanalyzers 5 | . . . . . . 2 . 1 . 1 . 1 Garrison Access 6 | . . . . . . 1 . 1 1 1 1 1 Total Hacks 135 | . . . 2 . 11 26 19 26 11 9 12 19 Successful 65 | . . . 2 . 4 14 7 11 6 6 5 10 Failed 69 | . . . . . 7 12 12 15 5 2 7 9 Catastrophic 6 | . . . . . 1 1 1 1 . 1 1 . Database Lockouts 1 | . . . . . . . . . . 1 . . Manual 63 | . . . 1 . 5 17 11 9 7 2 6 5 Terminals 95 | . . . . . 7 20 14 19 10 5 8 12 Fabricators 8 | . . . . . . 2 3 . . . 3 . Repair Stations 5 | . . . . . . . 2 . . . . 3 Recycling Units 5 | . . . . . 4 1 . . . . . . Scanalyzers 13 | . . . . . . 2 . 6 . 3 . 2 Garrison Access 7 | . . . . . . 1 . 1 1 1 1 2 Terminal Hacks 32 | . . . 2 . 2 5 5 3 5 2 3 5 Record 1 | . . . 1 . . . . . . . . . Part Schematic 1 | . . . . . . 1 . . . . . . Robot Analysis 3 | . . . . . 1 . . 1 . . . 1 Open Door 1 | . . . . . . . . . . . . 1 Level Access Points 5 | . . . . . . 1 1 . 1 . 1 1 Branch Access Points 1 | . . . . . . . . . . . 1 . Terminal Index 2 | . . . . . . 1 . . . . . 1 Unreport Threat 2 | . . . . . . . . . 1 . 1 . Locate Traps 1 | . . . . . . . . . 1 . . . Recall Extermination 3 | . . . . . . . 2 1 . . . . Recall Reinforcements 1 | . . . . . . . . . . 1 . . Hauler Manifests 4 | . . . . . 1 1 1 . . 1 . . Registered Components 3 | . . . . . . 1 . 1 1 . . . Registered Prototypes 2 | . . . . . . . 1 . 1 . . . Zone Layout 1 | . . . . . . . . . . . . 1 Proto ID Catalog 1 | . . . 1 . . . . . . . . . Fabricator Hacks 1 | . . . . . . 1 . . . . . . Load Schematic 1 | . . . . . . 1 . . . . . . Repair Station Hacks 4 | . . . . . . . 1 . . . . 3 Scan Component 1 | . . . . . . . . . . . . 1 Repair 1 | . . . . . . . . . . . . 1 Refit 2 | . . . . . . . 1 . . . . 1 Recycling Unit Hacks 1 | . . . . . . 1 . . . . . . Retrieve Components 1 | . . . . . . 1 . . . . . . Scanalyzer 11 | . . . . . . 2 . 6 . 2 . 1 Insert Component 3 | . . . . . . . . 3 . . . . Analyze 2 | . . . . . . . . 2 . . . . Retrieve Study 6 | . . . . . . 2 . 1 . 2 . 1 Garrison Access Hacks 5 | . . . . . . 1 . 1 1 1 1 . Seal Access 5 | . . . . . . 1 . 1 1 1 1 . Unauthorized Hacks 11 | . . . . . 2 4 1 1 . 1 1 1 Terminals 9 | . . . . . 2 3 . 1 . 1 1 1 Assimilate 3 | . . . . . 1 2 . . . . . . Botnet 3 | . . . . . . . . 1 . 1 1 . Disrupt 1 | . . . . . . . . . . . . 1 Operators 2 | . . . . . 1 1 . . . . . . Fabricators 2 | . . . . . . 1 1 . . . . . Prioritize 1 | . . . . . . . 1 . . . . . Recompile 1 | . . . . . . 1 . . . . . . Repair Stations . | . . . . . . . . . . . . . Recycling Units . | . . . . . . . . . . . . . Scanalyzers . | . . . . . . . . . . . . . Garrison Access . | . . . . . . . . . . . . . Data Cores Recovered 2 | . . . . . . 1 . . . . 1 . Used 1 | . . . . . . 1 . . . . . . Hacking Detections 42 | . . . . . 5 10 5 6 2 2 4 8 Full Trace Events 6 | . . . . . . 3 1 . . . 1 1 Feedback Events . | . . . . . . . . . . . . . Feedback Blocked . | . . . . . . . . . . . . . Robot Schematics Acquired . | . . . . . . . . . . . . . Robots Built . | . . . . . . . . . . . . . Authchips . | . . . . . . . . . . . . . Time . | . . . . . . . . . . . . . Total Robot Build Rating . | . . . . . . . . . . . . . Part Schematics Acquired 2 | . . . . . . 1 . 1 . . . . Parts Built . | . . . . . . . . . . . . . Authchips . | . . . . . . . . . . . . . Time . | . . . . . . . . . . . . . Total Part Build Rating . | . . . . . . . . . . . . . Part Studies Acquired 6 | . . . . . . 2 . 1 . 2 . 1 Parts Repaired 1 | . . . . . . . . . . . . 1 Time 22 | . . . . . . . . . . . . 22 Parts Recycled . | . . . . . . . . . . . . . Recycled Matter . | . . . . . . . . . . . . . Retrieved Matter . | . . . . . . . . . . . . . Retrieved Components 3 | . . . . . . 3 . . . . . . Parts Scanalyzed 1 | . . . . . . . . 1 . . . . Part Schematics Acquired 1 | . . . . . . . . 1 . . . . Parts Damaged . | . . . . . . . . . . . . . Bothacking | -11 -10 -10 -10 -9 -8 -7 -6 -5 -4 -3 -2 -1 ------------ Run | Yrd Mat Min Exi Min Mat Fac Fac Fac Fac Res Res Acc Used RIF Installer . | . . . . . . . . . . . . . Robots Hacked . | . . . . . . . . . . . . . Non-combat . | . . . . . . . . . . . . . Combat . | . . . . . . . . . . . . . Robot Hacks Applied . | . . . . . . . . . . . . . Relay Couplers Released . | . . . . . . . . . . . . . Fabnet Peak Effective % . | . . . . . . . . . . . . . Robots Rewired 2 | . . . . . . . 1 1 . . . . Allies Hacked . | . . . . . . . . . . . . . Hacks Repelled . | . . . . . . . . . . . . . Allies | -11 -10 -10 -10 -9 -8 -7 -6 -5 -4 -3 -2 -1 -------- Run | Yrd Mat Min Exi Min Mat Fac Fac Fac Fac Res Res Acc Total Allies 7 | . . . . 3 1 1 1 1 . . . . Largest Group 3 | . . . . 3 3 2 1 1 . . . . Highest-Rated Group 41 | . . . . 40 40 32 41 41 . . . . Highest-Rated Ally 41 | . . . . 16 16 16 41 41 . . . . Total Orders 2 | . . . . . 1 1 . . . . . . STAY 2 | . . . . . 1 1 . . . . . . Ally Attacks 39 | . . . . . 29 . 3 7 . . . . Total Damage 739 | . . . . . 309 . 207 223 . . . . Kills 7 | . . . . . 4 . 1 2 . . . . Allies Corrupted . | . . . . . . . . . . . . . Allies Melted 1 | . . . . . . . 1 . . . . . Intel | -11 -10 -10 -10 -9 -8 -7 -6 -5 -4 -3 -2 -1 ------- Run | Yrd Mat Min Exi Min Mat Fac Fac Fac Fac Res Res Acc Active Infowar (turns) 3525 | . 104 180 80 133 13 552 666 332 144 325 507 489 Optics 236 | . . . . . . . . . . . . 236 Structural 3005 | . . . . . 1 552 666 332 144 314 507 489 Seismic 698 | . 104 180 80 133 13 188 . . . . . . Jamming 227 | . . . . . . . . . . 12 193 22 Robot Analysis Total 3 | . . . . . 1 . . 1 . . . 1 Derelict Logs Recovered 2 | . . 1 . 1 . . . . . . . . Drone Launches . | . . . . . . . . . . . . . Drone Recoveries . | . . . . . . . . . . . . . Exploration | -11 -10 -10 -10 -9 -8 -7 -6 -5 -4 -3 -2 -1 ------------- Run | Yrd Mat Min Exi Min Mat Fac Fac Fac Fac Res Res Acc Turns Passed 3876 | 61 104 180 80 133 220 604 666 342 144 346 507 489 Spaces Moved 8084 | 58 144 220 212 185 348 1307 1263 862 506 800 1030 1149 Core 210 | 53 144 13 . . . . . . . . . . Treads 5 | 5 . . . . . . . . . . . . Legs . | . . . . . . . . . . . . . Wheels . | . . . . . . . . . . . . . Hover . | . . . . . . . . . . . . . Flight 7869 | . . 207 212 185 348 1307 1263 862 506 800 1030 1149 Fastest Speed 5 | 50 50 37 37 37 31 28 23 5 17 17 17 13 Average Speed 24 | 59 50 37 37 37 31 28 28 19 17 17 18 22 Slowest Speed 160 | 160 50 50 37 37 37 31 31 23 20 17 19 95 Overloaded Moves 37 | . . . . . . . . 4 . . . 33 Propulsion Burnouts . | . . . . . . . . . . . . . Robots Hopped 39 | . . 1 . 4 . 1 7 2 3 1 6 14 Potential Cave-ins . | . . . . . . . . . . . . . Cave-ins Triggered . | . . . . . . . . . . . . . Exploration Rate (%) 33 | 3 38 60 61 37 30 37 35 28 16 25 28 31 Regions Visited 12 Branch Regions 3 Pre-discovered Areas 2 | . . . 1 1 . . . . . . . . Known Exits Taken 5 | . . . . . 1 1 1 . 1 . 1 . Unknown Exits Taken 7 | 1 1 1 1 1 . . . 1 . 1 . . Scrap Searched 1 | . . . . 1 . . . . . . . . Spaces Dug 172 | . . . . . . 36 32 11 9 34 25 25 Terrain Destroyed 259 | . . . . . 23 36 32 11 9 36 25 87 Melee 155 | . . . . . . 36 32 11 9 17 25 25 Projectile 3 | . . . . . . . . . . . . 3 AOE 101 | . . . . . 23 . . . . 19 . 59 Terrain Rammed . | . . . . . . . . . . . . . Walls Destroyed . | . . . . . . . . . . . . . Machines Disabled . | . . . . . . . . . . . . . Actions | -11 -10 -10 -10 -9 -8 -7 -6 -5 -4 -3 -2 -1 --------- Run | Yrd Mat Min Exi Min Mat Fac Fac Fac Fac Res Res Acc Total 9430 | 73 172 317 213 244 448 1440 1476 972 535 949 1282 1309 Wait 898 | . 23 82 . 64 54 45 133 53 8 105 209 122 Move 7995 | 57 143 217 211 176 347 1304 1249 858 499 797 1017 1120 Hop 37 | . . 1 . 4 . 1 6 1 3 1 6 14 Pick Up 59 | 4 2 8 1 . 11 10 6 8 3 3 3 . Fast Attach 35 | 3 . 2 . . 1 2 5 6 3 2 4 7 Attach 26 | . 1 1 . . 6 5 2 3 1 2 1 4 Detach 11 | . . . . . 2 2 1 1 . 1 1 3 Swap 21 | . . . . . 3 4 4 1 1 3 4 1 Drop 66 | . . 6 1 . 8 7 14 10 4 4 7 5 Fire 26 | 9 3 . . . 4 . . . . 3 . 7 Melee 248 | . . . . . 12 60 49 30 13 28 30 26 Ram . | . . . . . . . . . . . . . Kick . | . . . . . . . . . . . . . Crush . | . . . . . . . . . . . . . Escape Stasis . | . . . . . . . . . . . . . Rewire 8 | . . . . . . . 7 1 . . . . Trap . | . . . . . . . . . . . . . Miscellaneous . | . . . . . . . . . . . . . Route ------- -11/Scrapyard -10/Materials (discovered 2 exits: [*Mat] / [*Min]) -10/Mines (discovered 3 exits: [*Mat x2] / *Exi) -10/Exiles (discovered 2 exits: [*Min x2]) -9/Mines -8/Materials (discovered 2 exits: *Fac x2) -7/Factory (discovered 5 exits: *Fac x4 / *Low) -6/Factory (discovered 5 exits: *Fac x4 / [*Low]) -5/Factory (discovered 2 exits: *Fac / *Upp) -4/Factory (discovered 4 exits: *Res x4) -3/Research -2/Research (discovered 5 exits: *Acc x3 / Tes x2) -1/Access To Epsilon Eridani History --------- Turn | Location | Event 8 | -11/Scrapyard | Discovered new exit (range 15) 62 | -11/Scrapyard | Entered Materials 97 | -10/Materials | Discovered new exit (range 10) 125 | -10/Materials | Discovered new exit (range 14) 138 | -10/Materials | Met 8R-AWN 166 | -10/Materials | Entered Mines 167 | -10/Mines | Followed 8R-AWN into the Mines 171 | -10/Mines | Learned 2 Materials zone layouts 303 | -10/Mines | Build established: Mutant 323 | -10/Mines | Discovered new exit (range 9) 339 | -10/Mines | Discovered new exit (range 6) 345 | -10/Mines | Discovered new exit (range 5) 346 | -10/Mines | Entered Exiles 352 | -10/Exiles | Discovered new exit (range 15) 356 | -10/Exiles | Welcomed by 8R-AWN 362 | -10/Exiles | Met EX-HEX 372 | -10/Exiles | Met EX-BIN 377 | -10/Exiles | Aligned with FarCom system 377 | -10/Exiles | Given EX-Vault access code 386 | -10/Exiles | Opened EX-Vault 389 | -10/Exiles | Found Longsword +1 397 | -10/Exiles | Warned to stay clear of 0b10 Research branches 409 | -10/Exiles | Met EX-DEC 412 | -10/Exiles | Learned location of Zion (-7) 423 | -10/Exiles | Discovered new exit (range 10) 426 | -10/Exiles | Left Exiles lab with Longsword +1 426 | -10/Exiles | Entered Mines 428 | -9/Mines | Assisted by bots powering up and referring to "LRC-V3" 490 | -9/Mines | Discovered new exit (range 13) 559 | -9/Mines | Entered Materials 559 | -8/Materials | Accompanied by 3 allies 559 | -8/Materials | Evolved 4 slots: Propulsion x2, Utility x2 560 | -8/Materials | Identified exit to Factory 715 | -8/Materials | Garrison activated, responded to threat 740 | -8/Materials | Discovered exit to Factory (range 14) 779 | -8/Materials | Entered Factory 779 | -7/Factory | Accompanied by 2 allies 779 | -7/Factory | Evolved 2 slots: Power x1, Propulsion x1 792 | -7/Factory | Discovered new exit (range 15) 940 | -7/Factory | Build established: Scavenger-Sprinter 1010 | -7/Factory | Garrison activated, responded to threat 1109 | -7/Factory | Discovered new exit (range 8) 1183 | -7/Factory | Identified exit to Lower Caves 1315 | -7/Factory | Identified exit to Factory 1383 | -7/Factory | Entered another Factory area 1383 | -6/Factory | Evolved 2 slots: Utility x2 1464 | -6/Factory | Identified exit to Factory 1600 | -6/Factory | Discovered new exit (range 4) 1679 | -6/Factory | Build established: Hacker-Sprinter 2049 | -6/Factory | Entered another Factory area 2049 | -5/Factory | Evolved 2 slots: Propulsion x1, Utility x1 2217 | -5/Factory | Discovered new exit (range 4) 2233 | -5/Factory | Identified exit to Upper Caves 2390 | -5/Factory | Discovered new exit (range 4) 2391 | -5/Factory | Entered another Factory area 2391 | -4/Factory | Evolved 2 slots: Propulsion x1, Utility x1 2420 | -4/Factory | Identified exit to Research 2535 | -4/Factory | Entered Research 2535 | -3/Research | Evolved 2 slots: Propulsion x1, Utility x1 2830 | -3/Research | Discovered new exit (range 8) 2848 | -3/Research | Central database locked down 2881 | -3/Research | Entered another Research area 2881 | -2/Research | Evolved 2 slots: Utility x2 3056 | -2/Research | Identified exit to Testing 3176 | -2/Research | Identified exit to Access 3388 | -2/Research | Entered Access 3388 | -1/Access | Evolved 2 slots: Utility x2 3479 | -1/Access | Energy Cycler disabled 3608 | -1/Access | Repaired Mic. Antimatter Reactor+ 3645 | -1/Access | Identified exit to Surface 3877 | *** | Escaped! Last Messages --------------- Testing... Disruption routine running. 03854_ Dropped Centrium Greatsword. 03855_ Destroyed Mining Laser. 03855_ Destroyed Seismic Detector. 03855_ T-07 Excavator destroyed. 03857_ S-43 Plague destroyed. 03857_ A-15 Conveyor distress signal jammed. 03858_ K-01 Serf sends out distress signal. 03858_ R-10 Processor distress signal jammed. 03860_ S-43 Plague destroyed. 03862_ Acquired Centrium Greatsword. 03863_ The unstable cave ceiling collapses. 03864_ Acquired 4 matter. 03865_ Acquired 20 matter. 03866_ G-73 Enforcer suffers critical hit (Burn). 03867_ Connecting with Terminal... 03869_ The unstable cave ceiling collapses. 03871_ The Access Shell folds into the floor. 03872_ The unstable cave ceiling collapses. Map ----- +----------------------------------------------------+ | ?????????????????????????????????????????????????? | | ?????????????????????????????????????????????????? | | ?????????????????????????????????????????????????? | | ?????????????????????????????????????????????????? | | ?????????????????????????????????????????????????? | | ?????????????????????????????????????????????????? | | ?????????????????????????????????????????????????? | | ?????????????????????????????????????????????????? | | ?????????????????????????????????????????????????? | | ?????????????????????????????????????????????????? | | ?????????????????????????????????????????????????? | | ?????????????????????????????????????????????????? | | ?????????????????????????????????????????????????? | | ?????????????????????????????????????????????????? | | ?????????????????????BB????BB????????????????????? | | ?????????????????????BB????BB????????????????????? | | ?????????????????????????????????????????????????? | | ?????????????????????????????????????????????????? | | ?????????????????????????????????????????????????? | | ??????????????????##"????????"##??? ###?? | | ??????????????????##""""""""""##???#############?? | | ??????????????????## ##???## ##?? | | ??????????????????## ##???## ##?? | | ??????????????????## ##???## " ##?? | | ??????????????????## "" ##???## """ ##?? | | ??????????????????## "@ ##???## """ ##?? | | ??????????????????## ##???## " ##?? | | ??????????????????## ##???## ##?? | | ?????????????????### ###??## #### | | ?????????????????### ###??######+######## | | ?????????????????## ##??##### | | ?????????????????###""g ###?????## | | ?????????????????###""g ###?????## ###+#### | | ??????????????????##""g ##??????## ## | | ??????????????????##T ########## ## | | ??????????????????##"" ########## ## " | | ??????????????????##""g = # # # ##""" | | ??????????????????##""g % = # """ | | ?????????? =%*= ! "" # " | | ????????? R ==% = T" # | | ????????? ########## # # # # | | ??????????############ # # ######+######### | | ???????????????????################ ### | | ????????????????????############### ?????????????# | | ?????????????????????????????????????????????????# | | ?????????????????????????????????????????????????# | | ?????????????????????????????????????????????????# | | ?????????????????????????????????????????????????# | | ?????????????????????????????????????????????????# | | ?????????????????????????????????????????????????# | +----------------------------------------------------+ Best States ------------- Heat Dissipation 52 Energy Generation 44 Energy Capacity 210 Matter Stores 300 Matter Capacity 300 Sight Range 22 Terrain Scan Density 10 Jamming Range 16 Power Amplification 30 Armor Coverage 225 Evasion (%) 74 Recoil Reduction 1 Offensive Hacking 58 Defensive Hacking 10 Authchip Count 1 Item Schematics ----------------- Hacking Suite | -7/Factory | Hacked Cld. VTOL Module | -5/Factory | Scanalyzed Robot Schematics ------------------ None Fabricated ------------ Nothing Repaired ---------- Mic. Antimatter Reactor | 34% | -1/Access Studied --------- Flight Unit | -7/Factory | Hacked Mic. Nuclear Core | -7/Factory | Hacked Lgt. Nuclear Core | -5/Factory | Hacked Field Propulsion Array | -3/Research | Hacked Q-thruster | -3/Research | Hacked Mic. Antimatter Reactor | -1/Access | Hacked Alien Tech Used ----------------- None Achievements -------------- None Challenges ------------ None Game ------ Seed MassMultitargetingUnit Manual? 0 Play Time 01:11:16 Cumulative 219.8 hours Start 2026.04.20 @ 08:28:55 End 2026.04.20 @ 09:38:47 Sessions 1 Manual Loads 0 Difficulty Rogue Special Mode None Game No. 142 Rogue 138 Adventurer 4 Explorer 0 Win Type 0 Total 42 Types 41/0/1/0/0/0/0/0/0/0 Lore% 86 Gallery% 63 Achievement% 58 Wizard Run 0 Options --------- Layout 0 ASCII 0 Keyboard 1 Movement Vi Keybinds 1 Fullscreen 2 Font 18/SmallcapsGlow Map View 76x50 Zoom Use 0% Tactical HUD 1 Map Filters NONE Filters NONE Steam 1 RUN: e9f371fb-e14f-430a-9a0e-07db1172efa3